[Event "FIDE Open Sachove Univerzity QCC"]
[Site "Ceske Budejovice"]
[Date "2020.07.08"]
[Round "8.5"]
[White "Valtr, Filip"]
[Black "Kanka, Lukas"]
[Result "1-0"]
[ECO "B42"]
[WhiteElo "1784"]
[BlackElo "1667"]
[Annotator "NA"]
[PlyCount "51"]
[EventDate "2020.07.01"]
[EventType "swiss"]
[EventCountry "CZE"]
[SourceTitle "playchess.com"]
[Source "ChessBase"]
[SourceQuality "1"]
[TimeControl "40/5400+30:1800+30"]

1. e4 {[%emt 0:00:00]} c5 {[%emt 0:00:00]} 2. Nf3 {[%emt 0:00:00]} e6 {[%emt 0:00:00]} 3. d4 {[%emt 0:00:00]} cxd4 {[%emt 0:00:00]} 4. Nxd4 {[%emt 0:00:00]} a6 {[%emt 0:00:35]} 5. Bd3 {[%emt 0:00:56]} Qc7 {[%emt 0:01:48]} 6. O-O {[%emt 0:01:32]} Nc6 {[%emt 0:03:29]} 7. Nxc6 {[%emt 0:00:16]} dxc6 {[%emt 0:00:07]} 8. Qe2 {[%emt 0:01:34]} Bd6 {[%emt 0:09:53]} 9. h3 {[%emt 0:00:49]} b5 {[%emt 0:03:22]} 10. c4 {[%emt 0:03:03]} b4 {[%emt 0:01:37]} 11. Be3 {[%emt 0:01:35]} c5 {[%emt 0:12:04]} 12. Nd2 {[%emt 0:01:18]} a5 {[%emt 0:03:06]} 13. f4 {[%emt 0:01:51]} e5 {[%emt 0:07:36]} 14. fxe5 {[%emt 0:09:06]} Bxe5 {[%emt 0:02:34]} 15. Nb3 {[%emt 0:00:53]} a4 {[%emt 0:03:43]} 16. Nxc5 {[%emt 0:06:22]} Ra5 {[%emt 0:01:32]} 17. Qf2 {[%emt 0:05:44]} Nf6 {[%emt 0:02:31]} 18. Rad1 {[%emt 0:05:30]} Bg3 {[%emt 0:00:59]} 19. Qd2 {[%emt 0:04:27]} Rxc5 {[%emt 0:19:08]} 20. Qxb4 {[%emt 0:26:30]} Rh5 {[%emt 0:13:35]} 21. Bb6 {[%emt 0:06:11]} Bd6 {[%emt 0:08:32]} 22. Qxa4+ {[%emt 0:02:22]} Qd7 {[%emt 0:01:30]} 23. Qc2 {[%emt 0:03:39]} Ng4 {[%emt 0:02:32]} 24. Be2 {[%emt 0:01:31]} Ne3 {[%emt 0:00:28]} 25. Bxe3 {[%emt 0:00:20]} Rxh3 {[%emt 0:01:08]} 26. e5 {[%emt 0:05:59]} 1-0

[Event "FIDE Open Sachove Univerzity QCC"]
[Site "Ceske Budejovice"]
[Date "2020.07.08"]
[Round "8.5"]
[White "Klimes, Roman"]
[Black "Stavova, Marketa"]
[Result "1-0"]
[ECO "C50"]
[WhiteElo "1349"]
[BlackElo "1219"]
[Annotator "NA"]
[PlyCount "51"]
[EventDate "2020.07.01"]
[EventType "swiss"]
[EventCountry "CZE"]
[SourceTitle "playchess.com"]
[Source "ChessBase"]
[SourceQuality "1"]
[TimeControl "40/5400+30:1800+30"]

1. e4 {[%emt 0:00:00]} e5 {[%emt 0:00:00]} 2. Nf3 {[%emt 0:00:00]} Nc6 {[%emt 0:00:04]} 3. Bc4 {[%emt 0:00:00]} Nf6 {[%emt 0:00:37]} 4. d3 {[%emt 0:02:01]} Bc5 {[%emt 0:01:33]} 5. Bg5 {[%emt 0:01:41]} h6 {[%emt 0:01:50]} 6. Bh4 {[%emt 0:00:05]} d6 {[%emt 0:00:18]} 7. Nc3 {[%emt 0:01:51]} Be6 {[%emt 0:01:25]} 8. Nd5 {[%emt 0:05:54]} Bxd5 {[%emt 0:00:36]} 9. Bxd5 {[%emt 0:03:34]} g5 {[%emt 0:06:02]} 10. Bg3 {[%emt 0:00:38]} Nxd5 {[%emt 0:01:20]} 11. exd5 {[%emt 0:00:03]} Nb4 {[%emt 0:01:27]} 12. c4 {[%emt 0:12:50]} f5 {[%emt 0:03:25]} 13. h3 {[%emt 0:08:22]} f4 {[%emt 0:02:53]} 14. Bh2 {[%emt 0:00:02]} Qe7 {[%emt 0:02:58]} 15. O-O {[%emt 0:04:28]} h5 {[%emt 0:01:56]} 16. d4 {[%emt 0:02:00]} g4 {[%emt 0:02:06]} 17. dxc5 {[%emt 0:04:39]} gxf3 {[%emt 0:00:46]} 18. Qa4+ {[%emt 0:03:07]} Qd7 {[%emt 0:00:13]} 19. Qxb4 {[%emt 0:00:26]} fxg2 {[%emt 0:00:13]} 20. Rfe1 {[%emt 0:01:59]} dxc5 {[%emt 0:02:00]} 21. Rxe5+ {[%emt 0:02:08]} Kd8 {[%emt 0:01:50]} 22. Qxb7 {[%emt 0:04:50]} Rc8 {[%emt 0:00:14]} 23. Rae1 {[%emt 0:06:28]} Qxh3 {[%emt 0:01:16]} 24. Qc6 {[%emt 0:05:52]} Qd7 {[%emt 0:01:21]} 25. Qf6+ {[%emt 0:00:43]} Qe7 {[%emt 0:00:35]} 26. Qxe7# 1-0

[Event "FIDE Open Sachove Univerzity QCC"]
[Site "Ceske Budejovice"]
[Date "2020.07.08"]
[Round "8.6"]
[White "Sobotka, Radim"]
[Black "Tajovsky, Simon"]
[Result "1-0"]
[ECO "A03"]
[WhiteElo "1764"]
[BlackElo "1594"]
[Annotator "NA"]
[PlyCount "45"]
[EventDate "2020.07.01"]
[EventType "swiss"]
[EventCountry "CZE"]
[SourceTitle "playchess.com"]
[Source "ChessBase"]
[SourceQuality "1"]
[TimeControl "40/5400+30:1800+30"]

1. f4 {[%emt 0:00:00]} d5 {[%emt 0:00:10]} 2. Nf3 {[%emt 0:00:00]} Nf6 {[%emt 0:00:34]} 3. b3 {[%emt 0:00:18]} e6 {[%emt 0:00:52]} 4. Bb2 {[%emt 0:00:36]} c5 {[%emt 0:01:07]} 5. e3 {[%emt 0:00:37]} Nc6 {[%emt 0:00:43]} 6. Bb5 {[%emt 0:01:02]} Be7 {[%emt 0:01:44]} 7. O-O {[%emt 0:00:57]} O-O {[%emt 0:00:13]} 8. Bxc6 {[%emt 0:07:39]} bxc6 {[%emt 0:00:07]} 9. d3 {[%emt 0:06:42]} Ba6 {[%emt 0:06:17]} 10. c4 {[%emt 0:04:36]} Qc7 {[%emt 0:06:16]} 11. Qe1 {[%emt 0:03:53]} Nd7 {[%emt 0:06:04]} 12. Nbd2 {[%emt 0:08:05]} Bf6 {[%emt 0:03:17]} 13. Bxf6 {[%emt 0:05:04]} Nxf6 {[%emt 0:03:03]} 14. Qh4 {[%emt 0:07:56]} Nd7 {[%emt 0:05:50]} 15. f5 {[%emt 0:04:02]} exf5 {[%emt 0:06:39]} 16. Ng5 {[%emt 0:07:29]} h6 {[%emt 0:01:07]} 17. Rxf5 {[%emt 0:19:35]} hxg5 {[%emt 0:04:03]} 18. Rxg5 {[%emt 0:00:11]} g6 {[%emt 0:02:03]} 19. Rf1 {[%emt 0:04:28]} Kg7 {[%emt 0:03:59]} 20. Rf3 {[%emt 0:03:11]} Rh8 {[%emt 0:02:47]} 21. Rxg6+ {[%emt 0:01:45]} Kxg6 {[%emt 0:02:28]} 22. Qg4+ {[%emt 0:00:18]} Kh7 {[%emt 0:00:25]} 23. Rh3# {[%emt 0:00:02]} 1-0

[Event "FIDE Open Sachove Univerzity QCC"]
[Site "Ceske Budejovice"]
[Date "2020.07.08"]
[Round "8.6"]
[White "Dobsinsky, Petr"]
[Black "Zezula, Matej"]
[Result "1-0"]
[ECO "D02"]
[WhiteElo "1248"]
[BlackElo "1125"]
[Annotator "NA"]
[PlyCount "85"]
[EventDate "2020.07.01"]
[EventType "swiss"]
[EventCountry "CZE"]
[SourceTitle "playchess.com"]
[Source "ChessBase"]
[SourceQuality "1"]
[TimeControl "40/5400+30:1800+30"]

1. Nf3 {[%emt 0:00:00]} d5 {[%emt 0:00:00]} 2. d4 {[%emt 0:00:00]} Nf6 {[%emt 0:00:38]} 3. g3 {[%emt 0:00:24]} Bg4 {[%emt 0:00:24]} 4. Bg2 {[%emt 0:00:17]} e6 {[%emt 0:01:00]} 5. b3 {[%emt 0:00:12]} Bd6 {[%emt 0:01:45]} 6. Bb2 {[%emt 0:00:13]} O-O {[%emt 0:01:38]} 7. O-O {[%emt 0:01:14]} Nbd7 {[%emt 0:02:57]} 8. Nbd2 {[%emt 0:00:24]} c6 {[%emt 0:01:42]} 9. c4 {[%emt 0:00:11]} b6 {[%emt 0:08:47]} 10. Rc1 {[%emt 0:02:00]} Re8 {[%emt 0:02:00]} 11. Qc2 {[%emt 0:02:11]} e5 {[%emt 0:10:38]} 12. cxd5 {[%emt 0:00:53]} cxd5 {[%emt 0:02:46]} 13. Qc6 {[%emt 0:04:53]} Qe7 {[%emt 0:01:06]} 14. Qa4 {[%emt 0:02:42]} e4 {[%emt 0:01:28]} 15. Nh4 {[%emt 0:02:50]} Qe6 {[%emt 0:03:08]} 16. e3 {[%emt 0:02:00]} Bh3 {[%emt 0:02:07]} 17. Rfe1 {[%emt 0:03:04]} g5 {[%emt 0:06:07]} 18. Bxh3 Qxh3 19. Ng2 {[%emt 0:02:12]} Rad8 {[%emt 0:09:11]} 20. Qb5 {[%emt 0:04:44]} Ng4 {[%emt 0:04:01]} 21. Nf1 {[%emt 0:00:11]} h5 {[%emt 0:01:51]} 22. Qxd5 {[%emt 0:00:17]} Be7 {[%emt 0:02:25]} 23. Qf5 {[%emt 0:04:45]} h4 {[%emt 0:04:04]} 24. Re2 {[%emt 0:00:32]} hxg3 {[%emt 0:01:39]} 25. fxg3 {[%emt 0:00:10]} Kg7 {[%emt 0:02:23]} 26. d5+ {[%emt 0:02:26]} Bf6 {[%emt 0:00:35]} 27. Bxf6+ {[%emt 0:00:46]} Ndxf6 {[%emt 0:00:16]} 28. Rc6 {[%emt 0:01:08]} Rh8 {[%emt 0:02:45]} 29. Qxg5+ {[%emt 0:01:25]} Kf8 {[%emt 0:01:38]} 30. Nf4 {[%emt 0:01:38]} Qh7 {[%emt 0:02:56]} 31. Rxf6 {[%emt 0:00:37]} Nxf6 {[%emt 0:00:49]} 32. Qxf6 {[%emt 0:00:20]} Re8 {[%emt 0:01:30]} 33. Ne6+ {[%emt 0:01:47]} Kg8 {[%emt 0:01:33]} 34. Qg5+ {[%emt 0:00:45]} Qg6 {[%emt 0:00:32]} 35. Qxg6+ {[%emt 0:00:57]} fxg6 {[%emt 0:00:07]} 36. Rd2 {[%emt 0:01:01]} Kf7 {[%emt 0:00:33]} 37. Nc7 {[%emt 0:00:36]} Re7 {[%emt 0:00:37]} 38. Rf2+ {[%emt 0:00:39]} Kg7 {[%emt 0:00:21]} 39. Ne6+ {[%emt 0:04:59]} Kh7 {[%emt 0:00:56]} 40. Ng5+ {[%emt 0:01:36]} Kg7 {[%emt 0:01:09]} 41. Ne6+ Kh7 42. Rf4 {[%emt 0:34:36]} Rd7 {[%emt 0:35:02]} 43. Nf8+ {[%emt 0:00:19]} 1-0

[Event "FIDE Open Sachove Univerzity QCC"]
[Site "Ceske Budejovice"]
[Date "2020.07.08"]
[Round "8.7"]
[White "Rychlik, Zdenek"]
[Black "Molnar, Ladislav"]
[Result "1/2-1/2"]
[ECO "C01"]
[WhiteElo "1701"]
[BlackElo "1712"]
[Annotator "NA"]
[PlyCount "55"]
[EventDate "2020.07.01"]
[EventType "swiss"]
[EventCountry "CZE"]
[SourceTitle "playchess.com"]
[Source "ChessBase"]
[SourceQuality "1"]
[TimeControl "40/5400+30:1800+30"]

1. e4 {[%emt 0:00:00]} e6 {[%emt 0:00:00]} 2. d4 {[%emt 0:00:00]} d5 {[%emt 0:00:00]} 3. exd5 {[%emt 0:03:00]} exd5 {[%emt 0:00:00]} 4. c4 {[%emt 0:00:07]} Nf6 {[%emt 0:02:56]} 5. Nc3 {[%emt 0:00:16]} Be6 {[%emt 0:01:53]} 6. c5 {[%emt 0:05:29]} c6 {[%emt 0:05:56]} 7. Bd3 {[%emt 0:05:29]} Be7 {[%emt 0:00:40]} 8. Nge2 {[%emt 0:00:17]} O-O {[%emt 0:05:01]} 9. Bd2 {[%emt 0:01:16]} h6 {[%emt 0:01:47]} 10. b4 {[%emt 0:04:50]} a6 {[%emt 0:03:14]} 11. a4 {[%emt 0:03:53]} Qc8 {[%emt 0:06:31]} 12. a5 {[%emt 0:06:09]} Bf5 {[%emt 0:04:01]} 13. Qc2 {[%emt 0:01:30]} Bxd3 {[%emt 0:00:31]} 14. Qxd3 {[%emt 0:00:12]} Nh7 {[%emt 0:02:32]} 15. O-O {[%emt 0:04:09]} Re8 {[%emt 0:06:00]} 16. Ng3 {[%emt 0:03:29]} Nd7 {[%emt 0:05:06]} 17. Rfe1 {[%emt 0:04:06]} Ndf8 {[%emt 0:04:19]} 18. Re2 {[%emt 0:01:32]} Bg5 {[%emt 0:07:50]} 19. Rae1 {[%emt 0:04:39]} Rxe2 {[%emt 0:01:18]} 20. Rxe2 {[%emt 0:00:30]} Bxd2 {[%emt 0:00:17]} 21. Qxd2 {[%emt 0:00:17]} Qd7 {[%emt 0:01:23]} 22. Nd1 {[%emt 0:00:55]} Re8 {[%emt 0:03:28]} 23. Rxe8 {[%emt 0:01:42]} Qxe8 {[%emt 0:00:08]} 24. Nf5 {[%emt 0:02:02]} Nf6 {[%emt 0:02:46]} 25. f3 {[%emt 0:09:07]} Ne6 {[%emt 0:02:29]} 26. Nd6 {[%emt 0:00:57]} Qd7 {[%emt 0:03:46]} 27. Ne3 {[%emt 0:04:30]} Ne8 {[%emt 0:04:15]} 28. Nxe8 {[%emt 0:03:33]} 1/2-1/2

[Event "FIDE Open Sachove Univerzity QCC"]
[Site "Ceske Budejovice"]
[Date "2020.07.08"]
[Round "8.8"]
[White "Simacek, Vaclav"]
[Black "Frnoch, Vojtech"]
[Result "1-0"]
[ECO "C15"]
[WhiteElo "1816"]
[BlackElo "1597"]
[Annotator "NA"]
[PlyCount "63"]
[EventDate "2020.07.01"]
[EventType "swiss"]
[EventCountry "CZE"]
[SourceTitle "playchess.com"]
[Source "ChessBase"]
[SourceQuality "1"]
[TimeControl "40/5400+30:1800+30"]

{[%evp 8,62,81,32767,32767,32767,223,32767,32767,32767,32767,59,32767,32767,32767,260,271,32767,470,32767,422,297,412,389,420,351,461,433,508,32767,761,680,679,32767,32767,616,961,32767,32767,872,1395,32767,32767,32767,32767,32767,32767,32767,32767,32767,32767,32767,32767,1037,29986,32767,29996]} 1. e4 {[%emt 0:00:00]} e6 {[%emt 0:00:00]} 2. d4 {[%emt 0:00:00]} d5 {[%emt 0:00:00]} 3. Nc3 {[%emt 0:00:00]} Bb4 {[%emt 0:00:13]} 4. Qg4 {[%emt 0:01:38]} Qf6 {[%emt 0:01:31] [#]} 5. Bd3 $146 {[%emt 0:05:09]} ({Predecessor:} 5. e5 Qg6 6. Qxg6 fxg6 7. Bd2 Ne7 8. Nf3 O-O 9. O-O-O Bd7 10. a3 Bxc3 11. Bxc3 Nf5 12. g4 {0-1 (49) Ntolo,D-Yavo Tchetche,M (1393) Hammamet 2019}) 5... Qg6 {[%emt 0:09:48]} 6. Qf3 {[%emt 0:02:05] C15: French: 3 Nc3 Bb4: Unusual White 4th moves.} h5 {[%emt 0:03:28]} (6... Qf6 $16 {was called for.}) 7. Nge2 {[%emt 0:07:11]} Qg4 {[%emt 0:10:47]} 8. Qe3 {[%emt 0:06:51]} dxe4 {[%emt 0:01:26]} 9. Bxe4 {[%emt 0:00:36]} f5 {[%emt 0:03:53]} 10. Bf3 {[%emt 0:01:23]} Qh4 {[%emt 0:05:58]} 11. Nf4 {[%emt 0:02:34]} Ne7 {[%emt 0:03:44]} 12. Nxe6 {[%emt 0:00:58]} Na6 $2 {[%emt 0:10:38]} (12... Bxe6 13. Bxb7 (13. Qxe6 Nbc6 $16) 13... Nbc6) 13. Nf4 {[%emt 0:02:47]} Kf7 {[%emt 0:08:18]} 14. g3 {[%emt 0:00:28]} Qg5 {[%emt 0:02:04]} 15. h4 {[%emt 0:00:42]} Qf6 {[%emt 0:03:45]} 16. Nxh5 {[%emt 0:01:21]} Qd6 {[%emt 0:01:20]} 17. O-O {[%emt 0:01:02]} Bxc3 {[%emt 0:04:08]} 18. bxc3 {[%emt 0:00:27]} Re8 {[%emt 0:00:38]} 19. Qd3 {[%emt 0:03:36]} g6 {[%emt 0:00:43]} 20. Nf4 {[%emt 0:00:26]} c6 {[%emt 0:00:44]} 21. Nh3 {[%emt 0:01:08]} Bd7 {[%emt 0:01:39]} 22. Bf4 {[%emt 0:08:47]} Qa3 {[%emt 0:00:44]} 23. h5 {[%emt 0:01:04]} Rh8 {[%emt 0:03:31]} 24. h6 {[%emt 0:03:01]} Kf8 {[%emt 0:02:32]} 25. Rfe1 {[%emt 0:01:19]} Re8 {[%emt 0:00:27]} 26. Ng5 {[%emt 0:00:54]} Nd5 {[%emt 0:03:25]} 27. Rxe8+ {[%emt 0:00:51]} Kxe8 {[%emt 0:01:19]} 28. Re1+ {[%emt 0:00:10]} Kf8 {[%emt 0:00:15]} 29. Bxd5 {[%emt 0:01:44]} cxd5 $11 {[%emt 0:00:18]} 30. Ne6+ {[%emt 0:00:20]} (30. Qe3 $142 Rxh6 31. Qe5 Rh1+ 32. Kxh1 Kg8 33. Qxd5+ {[%mdl 64] Double Attack} Be6 34. Qxe6+ {[%mdl 64] Double Attack} Kg7 35. Qf7+ {[%mdl 64] Double Attack} Kh8 36. Qh7#) 30... Kf7 {[%emt 0:02:11]} 31. Ng5+ {[%emt 0:01:33]} Kf6 {[%emt 0:03:35]} 32. Qe3 {[%emt 0:00:37]} 1-0

[Event "FIDE Open Sachove Univerzity QCC"]
[Site "Ceske Budejovice"]
[Date "2020.07.08"]
[Round "8.8"]
[White "Day, Sophia Olivia"]
[Black "Jilek, Pavel"]
[Result "1-0"]
[ECO "C41"]
[WhiteElo "1099"]
[BlackElo "1234"]
[Annotator "NA"]
[PlyCount "105"]
[EventDate "2020.07.01"]
[EventType "swiss"]
[EventCountry "CZE"]
[SourceTitle "playchess.com"]
[Source "ChessBase"]
[SourceQuality "1"]
[TimeControl "40/5400+30:1800+30"]

1. e4 {[%emt 0:00:00]} e5 {[%emt 0:00:00]} 2. Nf3 {[%emt 0:00:00]} d6 {[%emt 0:00:13]} 3. Nc3 {[%emt 0:00:09]} c6 {[%emt 0:00:34]} 4. d4 {[%emt 0:00:19]} Bg4 {[%emt 0:01:39]} 5. Be2 {[%emt 0:00:17]} Be7 {[%emt 0:01:14]} 6. dxe5 {[%emt 0:00:49]} Bxf3 {[%emt 0:00:41]} 7. Bxf3 {[%emt 0:00:03]} dxe5 8. Qxd8+ Bxd8 {[%emt 0:01:17]} 9. O-O {[%emt 0:01:03]} Nf6 {[%emt 0:02:39]} 10. Be3 {[%emt 0:01:14]} b6 {[%emt 0:01:03]} 11. Rad1 {[%emt 0:01:38]} O-O {[%emt 0:01:08]} 12. h4 {[%emt 0:00:43]} h6 {[%emt 0:00:38]} 13. Be2 {[%emt 0:01:40]} Nfd7 {[%emt 0:00:46]} 14. f4 {[%emt 0:02:20]} Bxh4 {[%emt 0:00:42]} 15. Bg4 {[%emt 0:00:48]} Nf6 {[%emt 0:01:01]} 16. Bh3 {[%emt 0:02:35]} Na6 {[%emt 0:00:34]} 17. fxe5 {[%emt 0:01:29]} Nh5 {[%emt 0:01:12]} 18. e6 {[%emt 0:03:14]} Bf6 {[%emt 0:04:10]} 19. exf7+ {[%emt 0:01:52]} Kh8 {[%emt 0:00:28]} 20. Be6 {[%emt 0:01:33]} Nb4 {[%emt 0:00:34]} 21. Rd2 {[%emt 0:01:53]} Rad8 {[%emt 0:00:56]} 22. a3 {[%emt 0:01:04]} Rxd2 23. Bxd2 Nxc2 {[%emt 0:02:15]} 24. e5 {[%emt 0:00:50]} Bxe5 {[%emt 0:01:18]} 25. Rf5 {[%emt 0:01:54]} Bd4+ {[%emt 0:00:38]} 26. Kh2 {[%emt 0:00:39]} Nf6 {[%emt 0:01:34]} 27. Bb3 {[%emt 0:04:23]} Ne3 {[%emt 0:03:52]} 28. Rf4 {[%emt 0:03:17]} Be5 {[%emt 0:01:26]} 29. Bxe3 {[%emt 0:00:21]} Ng4+ {[%emt 0:01:09]} 30. Kh3 {[%emt 0:00:49]} Nxe3 31. Re4 g6 {[%emt 0:07:15]} 32. Rxe5 {[%emt 0:01:32]} Nf5 {[%emt 0:00:50]} 33. g4 {[%emt 0:00:42]} Nd6 {[%emt 0:00:48]} 34. g5 {[%emt 0:00:40]} h5 {[%emt 0:00:53]} 35. Re6 {[%emt 0:00:28]} Nxf7 {[%emt 0:01:28]} 36. Rxg6 {[%emt 0:01:08]} Ne5 {[%emt 0:02:01]} 37. Rh6+ {[%emt 0:00:46]} Kg7 {[%emt 0:01:02]} 38. Rxh5 {[%emt 0:00:23]} Kg6 {[%emt 0:01:07]} 39. Rh4 {[%emt 0:00:43]} Kxg5 {[%emt 0:00:34]} 40. Ne4+ {[%emt 0:00:24]} Kf5 {[%emt 0:01:06]} 41. Kg3 {[%emt 0:31:17]} Rd8 {[%emt 0:32:45]} 42. Rf4+ {[%emt 0:00:21]} Kg6 {[%emt 0:01:38]} 43. Rf6+ {[%emt 0:01:09]} Kg7 {[%emt 0:01:28]} 44. Kf4 {[%emt 0:02:19]} Ng6+ {[%emt 0:02:06]} 45. Kg5 {[%emt 0:00:11]} Ne5 {[%emt 0:01:23]} 46. Nd6 {[%emt 0:00:53]} Nf3+ {[%emt 0:02:17]} 47. Rxf3 {[%emt 0:01:30]} Rxd6 {[%emt 0:00:46]} 48. Rf7+ {[%emt 0:00:13]} Kh8 {[%emt 0:01:27]} 49. Rf8+ {[%emt 0:00:40]} Kg7 {[%emt 0:02:09]} 50. Rg8+ {[%emt 0:00:30]} Kh7 {[%emt 0:00:33]} 51. Rf8 {[%emt 0:00:41]} a5 {[%emt 0:01:46]} 52. Rf6 {[%emt 0:02:14]} Rd3 53. Bc2 1-0

[Event "FIDE Open Sachove Univerzity QCC"]
[Site "Ceske Budejovice"]
[Date "2020.07.08"]
[Round "8.9"]
[White "Josko, Jiri"]
[Black "Veverka, Vladimir"]
[Result "1/2-1/2"]
[ECO "D00"]
[WhiteElo "1649"]
[BlackElo "1644"]
[Annotator "NA"]
[PlyCount "38"]
[EventDate "2020.07.01"]
[EventType "swiss"]
[EventCountry "CZE"]
[SourceTitle "playchess.com"]
[Source "ChessBase"]
[SourceQuality "1"]
[TimeControl "40/5400+30:1800+30"]

1. d4 {[%emt 0:02:06]} d5 {[%emt 0:00:00]} 2. Bf4 {[%emt 0:00:54]} c5 {[%emt 0:00:01]} 3. e3 {[%emt 0:01:44]} Nc6 {[%emt 0:00:25]} 4. c3 {[%emt 0:00:35]} Nf6 {[%emt 0:02:22]} 5. h3 {[%emt 0:03:36]} Qb6 {[%emt 0:02:45]} 6. Qc2 {[%emt 0:17:33]} Bf5 {[%emt 0:01:29]} 7. dxc5 {[%emt 0:06:57]} Bxc2 {[%emt 0:13:29]} 8. cxb6 {[%emt 0:00:22]} e5 {[%emt 0:06:11]} 9. Bg3 {[%emt 0:06:06]} a5 {[%emt 0:06:48]} 10. Bb5 {[%emt 0:04:20]} Nd7 {[%emt 0:06:11]} 11. Nf3 {[%emt 0:05:34]} f6 {[%emt 0:01:56]} 12. O-O {[%emt 0:07:10]} Nxb6 {[%emt 0:02:30]} 13. Nbd2 {[%emt 0:04:35]} Be7 {[%emt 0:04:12]} 14. Rac1 {[%emt 0:06:07]} Bf5 {[%emt 0:02:36]} 15. c4 {[%emt 0:02:20]} Bd3 {[%emt 0:03:12]} 16. Rfd1 {[%emt 0:02:19]} Nxc4 {[%emt 0:03:40]} 17. Nxc4 {[%emt 0:03:01]} Bxc4 {[%emt 0:00:31]} 18. Bxc4 {[%emt 0:01:22]} dxc4 {[%emt 0:00:51]} 19. Rxc4 {[%emt 0:00:51]} Kf7 {[%emt 0:06:53]} 1/2-1/2

[Event "FIDE Open Sachove Univerzity QCC"]
[Site "Ceske Budejovice"]
[Date "2020.07.08"]
[Round "8.10"]
[White "Dusanek, Michal"]
[Black "Matlocha, Lubomir"]
[Result "1-0"]
[ECO "B54"]
[WhiteElo "1500"]
[BlackElo "1646"]
[Annotator "NA"]
[PlyCount "97"]
[EventDate "2020.07.01"]
[EventType "swiss"]
[EventCountry "CZE"]
[SourceTitle "playchess.com"]
[Source "ChessBase"]
[SourceQuality "1"]
[TimeControl "40/5400+30:1800+30"]

1. e4 {[%emt 0:00:00]} c5 {[%emt 0:00:41]} 2. Nf3 {[%emt 0:01:00]} d6 {[%emt 0:00:13]} 3. d4 {[%emt 0:00:30]} cxd4 {[%emt 0:00:09]} 4. Nxd4 {[%emt 0:00:07]} Bd7 {[%emt 0:00:07]} 5. Be3 {[%emt 0:00:55]} g6 {[%emt 0:00:19]} 6. Be2 {[%emt 0:01:41]} Bg7 {[%emt 0:00:05]} 7. Nc3 {[%emt 0:00:47]} Nc6 {[%emt 0:03:38]} 8. Qd2 {[%emt 0:02:07]} a6 {[%emt 0:08:57]} 9. h4 {[%emt 0:02:36]} h5 {[%emt 0:07:55]} 10. f3 {[%emt 0:01:03]} Bh6 {[%emt 0:15:09]} 11. O-O-O {[%emt 0:06:23]} Bxe3 {[%emt 0:05:57]} 12. Qxe3 {[%emt 0:00:17]} Qb6 {[%emt 0:06:24]} 13. Nd5 {[%emt 0:04:15]} Qd8 {[%emt 0:02:22]} 14. Qc3 {[%emt 0:15:17]} f6 {[%emt 0:06:40]} 15. g4 {[%emt 0:14:08]} Rc8 {[%emt 0:06:56]} 16. Qe3 {[%emt 0:01:45]} Nxd4 {[%emt 0:02:25]} 17. Qxd4 {[%emt 0:03:15]} Be6 {[%emt 0:08:28]} 18. Bc4 {[%emt 0:03:44]} Bf7 {[%emt 0:02:04]} 19. g5 {[%emt 0:09:11]} e5 {[%emt 0:02:53]} 20. Qd3 {[%emt 0:02:46]} fxg5 {[%emt 0:00:56]} 21. hxg5 {[%emt 0:01:05]} Qxg5+ {[%emt 0:01:25]} 22. Kb1 {[%emt 0:00:23]} Qd8 {[%emt 0:00:39]} 23. Ne3 {[%emt 0:03:57]} Nf6 {[%emt 0:04:10]} 24. Bxf7+ {[%emt 0:01:20]} Kxf7 {[%emt 0:00:31]} 25. Qxd6 {[%emt 0:00:12]} Qxd6 {[%emt 0:00:00]} 26. Rxd6 {[%emt 0:00:06]} Rhd8 {[%emt 0:00:11]} 27. Rhd1 {[%emt 0:00:38]} Rxd6 {[%emt 0:01:03]} 28. Rxd6 {[%emt 0:00:08]} Rc7 {[%emt 0:01:10]} 29. c3 {[%emt 0:01:18]} Nh7 {[%emt 0:02:04]} 30. Kc2 {[%emt 0:00:39]} Ng5 {[%emt 0:00:28]} 31. Nd5 {[%emt 0:00:40]} Rc6 {[%emt 0:03:44]} 32. Rd7+ {[%emt 0:01:35]} Kf8 {[%emt 0:00:39]} 33. Rxb7 {[%emt 0:00:58]} Nxf3 {[%emt 0:00:16]} 34. Kd3 {[%emt 0:00:24]} Ng5 {[%emt 0:00:34]} 35. Re7 {[%emt 0:00:50]} Ne6 {[%emt 0:00:34]} 36. Ke3 {[%emt 0:00:57]} Nf4 {[%emt 0:01:20]} 37. Rxe5 {[%emt 0:01:27]} Nxd5+ {[%emt 0:02:20]} 38. exd5 {[%emt 0:00:20]} Rb6 {[%emt 0:01:40]} 39. b4 {[%emt 0:00:51]} Kf7 {[%emt 0:00:01]} 40. a3 {[%emt 0:01:23]} Kf6 {[%emt 0:00:18]} 41. Kf4 {[%emt 0:31:27]} Kf7 {[%emt 0:07:56]} 42. c4 {[%emt 0:00:00]} Rf6+ {[%emt 0:06:41]} 43. Kg3 {[%emt 0:00:00]} Rf1 {[%emt 0:04:51]} 44. d6 {[%emt 0:00:00]} Rd1 {[%emt 0:02:36]} 45. c5 {[%emt 0:00:00]} Rd3+ {[%emt 0:00:30]} 46. Kg2 {[%emt 0:00:00]} h4 {[%emt 0:02:09]} 47. c6 {[%emt 0:00:00]} Rxd6 {[%emt 0:00:21]} 48. c7 {[%emt 0:00:00]} Rd2+ {[%emt 0:00:17]} 49. Kh3 {[%emt 0:00:00]} 1-0